bitfinex/quotes_SOLUSD_20240716
["timestamp","ask_amount","ask_price","bid_price","bid_amount"]
[1721146132285,6.34853678,160.56,160.45,15.5804]
[1721146132488,6.34853678,160.56,160.47,6.2313]
[1721146132685,24.90853678,160.56,160.46,6.232]
[1721146132891,28.56,160.53,160.43,7.3019948]
[1721146133097,18.56,160.53,160.43,1.0689948]
[1721146133298,16.34853678,160.56,160.45,15.5808]
[1721146133490,6.34853678,160.56,160.45,15.5808]
[1721146133704,28.56,160.55,160.45,15.5808]
[1721146134009,28.56,160.55,160.43,1.0689948]
[1721146134194,28.56,160.55,160.44,6.2325]
[1721146134392,18.56,160.49,160.43,1.0689948]
[1721146134600,0.17,160.48,160.43,1.0689948]
[1721146134988,10.17,160.48,160.43,1.0689948]
[1721146135188,18.56,160.47,160.43,1.0689948]
[1721146135415,18.56,160.49,160.43,1.0689948]
[1721146135612,0.17,160.48,160.43,1.0689948]
[1721146135903,61.7959,160.48,160.43,1.0689948]
[1721146136411,0.17,160.48,160.43,1.0689948]
[1721146136586,0.17,160.48,160.43,1.2361189]
[1721146137595,6.34162608,160.54,160.47,6.2314]
[1721146137807,6.34162608,160.54,160.48,6.231]
[1721146138106,6.34162608,160.54,160.48,6.2312]
[1721146138309,6.6259,160.59,160.49,6.2308]
[1721146138610,6.33828249,160.57,160.49,6.2308]
[1721146138804,6.33828249,160.57,160.43,23.3479189]
[1721146138805,18.56,160.56,160.43,23.3479189]
[1721146139005,28.56,160.56,160.43,29.5807189]
[1721146139214,28.56,160.56,160.44,45.0]
[1721146139507,18.56,160.53,160.43,7.7654189]
[1721146139682,18.56,160.55,160.45,21.8133]
[1721146139886,6.33828249,160.57,160.45,15.581]
[1721146140105,6.33828249,160.57,160.46,51.2319]
[1721146140313,6.33828249,160.57,160.47,1.24609791]
[1721146140498,16.6259,160.64,160.52,21.803]
[1721146140814,16.6259,160.64,160.52,21.8033]
[1721146140815,6.34689057,160.61,160.52,21.8033]
[1721146140992,16.6259,160.64,160.52,15.5737]
[1721146140993,10.0,160.64,160.52,15.5737]
[1721146141183,6.34652973,160.63,160.53,45.0]
[1721146141387,6.2259,160.62,160.47,21.8098]
[1721146141605,10.0,160.61,160.44,15.5817]
[1721146141803,18.56,160.6,160.44,31.1633]
[1721146142008,18.56,160.6,160.49,6.2308]
[1721146142193,18.56,160.62,160.48,15.5774]
[1721146142403,6.34652973,160.63,160.55,6.2282]
[1721146142591,6.34652973,160.63,160.54,15.5717]
[1721146142785,6.34652973,160.63,160.56,6.2279]
[1721146146016,6.34652973,160.63,160.55,6.2285]
[1721146146312,6.34652973,160.63,160.49,45.13]
[1721146146313,24.90652973,160.63,160.52,6.2296]
[1721146146505,18.56,160.59,160.47,16.4187]
[1721146146696,0.17,160.58,160.49,15.5767]
[1721146147013,18.56,160.61,160.52,6.2296]
[1721146147212,0.17,160.6,160.51,6.23]
[1721146147425,0.17,160.6,160.5,6.2305]
[1721146147586,0.17,160.6,160.49,15.5767]
[1721146147587,18.56,160.59,160.49,21.8076]
[1721146147792,28.56,160.58,160.47,16.4187]
[1721146148010,0.17,160.57,160.47,31.9973]
[1721146148390,0.17,160.57,160.44,21.8141]
[1721146148391,18.56,160.54,160.44,21.8141]
[1721146148592,18.56,160.52,160.43,7.4693189]
[1721146148817,18.56,160.52,160.43,1.2361189]
[1721146148996,0.17,160.51,160.43,1.2361189]
[1721146149394,18.56,160.5,160.43,1.2361189]
[1721146149591,0.17,160.49,160.43,1.2361189]
[1721146150310,18.56,160.48,160.43,1.2361189]
[1721146150709,10.17,160.47,160.43,1.2361189]
[1721146151024,28.56,160.45,160.43,1.2361189]
[1721146151194,18.56,160.45,160.43,1.2361189]
[1721146151529,28.73,160.44,160.43,1.2361189]
[1721146151732,73.73,160.44,160.43,1.2361189]
[1721146152098,63.73,160.44,160.43,1.2361189]
[1721146152500,18.73,160.44,160.43,1.2361189]
[1721146153097,0.17,160.44,160.43,1.2361189]
[1721146153497,6.34806667,160.45,160.43,1.2361189]
[1721146153721,10.0,160.5,160.43,1.2361189]
[1721146153919,6.35646604,160.46,160.43,1.2361189]
[1721146154129,18.56,160.47,160.43,1.2361189]
[1721146154319,3.24163185,160.53,160.43,1.2361189]
[1721146154320,18.56,160.45,160.43,1.2361189]
[1721146154627,24.91573973,160.45,160.43,1.2361189]
[1721146154938,28.56,160.44,160.43,1.2361189]
[1721146155099,28.73,160.44,160.43,1.2361189]
[1721146155425,18.73,160.44,160.43,1.2361189]
[1721146156408,0.17,160.44,160.43,1.2361189]
[1721146156608,6.35573973,160.45,160.43,1.2361189]
[1721146156913,10.0,160.51,160.43,1.2361189]
[1721146157127,16.35476573,160.51,160.43,1.2361189]
[1721146157297,6.35476573,160.51,160.43,1.2361189]
[1721146157629,6.35476573,160.51,160.44,15.5814]
[1721146157801,10.0,160.56,160.45,45.0]
[1721146158126,6.35296311,160.51,160.43,7.4690189]
[1721146158334,6.23,160.52,160.43,1.2361189]
[1721146158497,28.56,160.49,160.43,1.2361189]
[1721146158697,18.56,160.49,160.43,1.2361189]
[1721146159623,28.56,160.49,160.43,1.2361189]
[1721146159836,0.17,160.48,160.43,1.2361189]
[1721146160030,18.56,160.46,160.43,1.2361189]
[1721146160239,10.0,160.44,160.43,1.2361189]
[1721146160412,0.17,160.44,160.43,1.2361189]
[1721146160797,10.0,160.52,160.43,1.2361189]
[1721146161442,18.56,160.51,160.43,1.2361189]
[1721146162131,18.56,160.49,160.43,1.2361189]
[1721146162433,18.56,160.47,160.43,1.2361189]
[1721146163212,0.17,160.46,160.43,1.2361189]
[1721146163419,28.56,160.45,160.43,1.2361189]
[1721146163625,0.17,160.44,160.43,1.2361189]
[1721146164111,18.73,160.44,160.43,1.2361189]
[1721146164498,63.73,160.44,160.43,1.2361189]
[1721146166230,18.56,160.46,160.43,1.2361189]
[1721146166621,3.24302737,160.51,160.43,1.2361189]
[1721146166831,10.0,160.52,160.43,1.2361189]
[1721146167139,24.9129901,160.55,160.44,21.8146]
[1721146167308,24.9129901,160.55,160.45,16.63581671]
[1721146167502,24.9129901,160.55,160.45,15.3896]
[1721146167733,18.56,160.53,160.45,15.3896]
[1721146168240,18.56,160.51,160.45,15.3896]
[1721146168812,6.51745325,160.5,160.45,15.3896]
[1721146169020,25.07745325,160.5,160.45,15.3896]
[1721146169221,35.07745325,160.5,160.43,1.2361189]
[1721146169738,25.07745325,160.5,160.43,1.2361189]
[1721146169933,6.51745325,160.5,160.43,1.2361189]
[1721146170240,6.34745325,160.5,160.43,1.2361189]
[1721146171032,34.90745325,160.5,160.43,1.2361189]
[1721146171332,24.90745325,160.5,160.43,1.2361189]
[1721146171536,0.17,160.49,160.43,1.2361189]
[1721146173013,18.73,160.49,160.43,1.2361189]
[1721146173455,10.0,160.48,160.43,1.2361189]
[1721146173736,63.56,160.47,160.43,1.2361189]
[1721146174039,0.17,160.46,160.43,1.2361189]
[1721146175816,6.34745325,160.5,160.43,1.2361189]
[1721146176335,24.90745325,160.5,160.43,1.2361189]
[1721146176541,6.34745325,160.5,160.43,1.2361189]
[1721146176929,24.90745325,160.5,160.43,1.2361189]
[1721146177130,6.34745325,160.5,160.43,1.2361189]
[1721146177933,24.90745325,160.5,160.43,1.2361189]
[1721146178124,34.90745325,160.5,160.43,1.2361189]
[1721146178328,41.13805325,160.5,160.43,1.2361189]
[1721146178656,18.56,160.48,160.43,1.2361189]
[1721146178932,18.56,160.46,160.43,1.2361189]
[1721146179137,0.17,160.45,160.43,1.2361189]
[1721146180631,28.56,160.44,160.43,1.2361189]
[1721146180942,63.56,160.44,160.43,1.2361189]
[1721146181123,63.73,160.44,160.43,1.2361189]
[1721146181328,0.17,160.44,160.43,1.2361189]
[1721146181641,6.3592588,160.48,160.43,1.2361189]
[1721146181813,10.0,160.47,160.43,1.2361189]
[1721146182022,16.2318,160.47,160.43,1.2361189]
[1721146182236,16.2317,160.47,160.43,1.2361189]
[1721146182521,18.56,160.46,160.43,1.2361189]
[1721146182852,18.56,160.44,160.43,1.2361189]
[1721146183135,0.17,160.44,160.43,1.2361189]
[1721146187741,45.17,160.44,160.43,1.2361189]
[1721146188039,63.73,160.44,160.43,1.2361189]
[1721146188239,69.9628,160.44,160.43,1.2361189]
[1721146188445,63.73,160.44,160.43,1.2361189]
[1721146188831,18.73,160.44,160.43,1.2361189]
[1721146189034,24.9628,160.44,160.43,1.2361189]
[1721146189222,69.9628,160.44,160.43,1.2361189]
[1721146189418,63.73,160.44,160.43,1.2361189]
[1721146189637,70.09494369,160.44,160.43,1.2361189]
[1721146190417,25.09494369,160.44,160.43,1.2361189]
[1721146190931,70.09494369,160.44,160.43,1.2361189]
[1721146191253,76.32774369,160.44,160.43,1.2361189]
[1721146191953,94.39222933,160.44,160.43,1.2361189]
[1721146192245,84.39222933,160.44,160.43,1.2361189]
[1721146192425,87.09216847,160.44,160.43,1.2361189]
[1721146192835,18.56,160.41,160.35,15.7032]
[1721146193035,18.56,160.39,160.29,6.4787]
[1721146193245,18.56,160.4,160.3,45.37161896]
[1721146193440,0.17,160.39,160.31,1.24733667]
[1721146193656,6.36494369,160.44,160.32,6.2371]
[1721146193853,6.36494369,160.44,160.33,51.237]
[1721146194021,6.36494369,160.44,160.34,7.48317668]
[1721146194222,6.36494369,160.44,160.35,45.0]
[1721146194656,24.92494369,160.44,160.3,15.7654]
[1721146194818,6.36494369,160.44,160.31,45.17]
[1721146195018,6.36494369,160.44,160.34,6.2366]
[1721146195238,24.92494369,160.44,160.31,45.0]
[1721146195519,18.56,160.42,160.3,45.0]
[1721146196165,24.7937,160.42,160.3,45.0]
[1721146196343,18.56,160.4,160.29,6.4787]
[1721146196539,18.56,160.38,160.29,6.4787]
[1721146196957,0.17,160.37,160.29,6.4787]
[1721146197637,18.56,160.4,160.29,6.4787]
[1721146197966,0.17,160.39,160.3,1.24784625]
[1721146198146,58.25073879,160.43,160.3,7.48604625]
[1721146198350,14.42942933,160.44,160.3,1.24784625]
[1721146198351,18.56,160.42,160.3,1.24784625]
[1721146198864,18.56,160.43,160.31,1.24725044]
[1721146199235,6.36494369,160.44,160.31,1.24725044]
[1721146199460,6.36494369,160.44,160.35,6.2362]
[1721146199664,6.36494369,160.44,160.36,45.0]
[1721146199879,6.36494369,160.44,160.33,21.2704]
[1721146200152,6.36494369,160.44,160.34,45.0]
[1721146200476,9.61568248,160.44,160.34,6.2366]
[1721146200646,9.61568248,160.44,160.33,15.0335]
[1721146200647,6.36494369,160.44,160.39,6.2347]
[1721146200853,6.36494369,160.44,160.37,15.588]
[1721146201048,6.36494369,160.44,160.38,45.0]
[1721146201270,3.25073879,160.47,160.39,6.277]
[1721146201562,9.61323247,160.47,160.39,6.277]
[1721146201761,3.25073879,160.48,160.4,46.24655743]
[1721146201947,3.25073879,160.5,160.4,46.24655743]
[1721146202148,9.61693952,160.5,160.4,45.0]
[1721146202373,3.25073879,160.49,160.39,6.277]
[1721146202740,3.25073879,160.49,160.4,45.0]
[1721146202941,9.61693952,160.5,160.4,51.2342]
[1721146203272,9.61693952,160.5,160.4,45.0]
[1721146203684,3.25073879,160.48,160.39,6.277]
[1721146203872,3.25073879,160.47,160.39,6.277]
[1721146204900,3.25073879,160.47,160.39,12.5117]
[1721146205175,3.25073879,160.48,160.39,6.277]
[1721146205472,3.25073879,160.48,160.4,45.0]
[1721146205779,3.25073879,160.48,160.41,1.24653444]
[1721146205947,3.25073879,160.48,160.4,45.0]
[1721146206151,3.25932676,160.56,160.47,37.04]
[1721146206450,24.76835052,160.72,160.45,6.3745]
[1721146206451,3.25932676,160.6,160.45,6.3745]
[1721146206645,3.25932676,160.58,160.47,15.5784]
[1721146206984,3.25932676,160.62,160.51,6.2297]
[1721146207163,18.91352676,160.66,160.53,15.5733]
[1721146207367,18.91352676,160.66,160.45,6.3745]
[1721146207368,10.0,160.61,160.45,6.3745]
[1721146207566,40.29932676,160.54,160.38,15.3032]
[1721146207879,40.29932676,160.54,160.39,1.2465008]
[1721146207880,37.04,160.54,160.39,1.2465008]
[1721146208083,18.56,160.54,160.4,1.24639875]
[1721146208387,18.56,160.54,160.38,15.3032]
[1721146208754,0.17,160.53,160.38,15.3032]
[1721146209365,3.25932676,160.55,160.39,0.4737287]
[1721146209683,43.16774949,160.54,160.4,1.05173597]
[1721146209891,22.69842273,160.53,160.4,1.05173597]
[1721146210069,3.25932676,160.54,160.41,1.24621143]
[1721146210267,3.25932676,160.54,160.38,33.8632]
[1721146210487,3.25932676,160.57,160.43,6.3745]
[1721146210789,22.93493886,160.65,160.46,36.94]
[1721146210790,3.25932676,160.62,160.46,36.94]
[1721146210958,2.69712002,160.61,160.47,20.34]
[1721146211165,3.25932676,160.62,160.48,21.6777]
[1721146211363,3.25932676,160.63,160.49,21.58541124]
[1721146211586,6.37403886,160.65,160.49,77.08541124]
[1721146211587,9.63336562,160.65,160.49,77.08541124]
[1721146211771,6.37403886,160.65,160.49,77.08541124]
[1721146212101,6.37403886,160.65,160.52,36.94]
[1721146212281,6.37403886,160.65,160.53,20.34]
[1721146212481,6.37403886,160.65,160.54,15.6236]
[1721146212795,18.56,160.71,160.54,15.6236]
[1721146212796,3.25932676,160.71,160.55,20.17]
[1721146213090,6.39966323,160.68,160.56,1.41493244]
[1721146213295,3.25932676,160.73,160.57,6.831]
[1721146213501,6.40050443,160.71,160.58,20.17]
[1721146213663,6.40050443,160.71,160.57,6.661]
[1721146214473,6.2241,160.67,160.57,6.661]
[1721146214790,6.40050443,160.71,160.57,6.661]
[1721146215007,15.5569,160.7,160.57,6.661]
[1721146215506,6.2237,160.68,160.57,6.661]
[1721146215794,20.0,160.69,160.58,20.0]
[1721146216106,6.2236,160.68,160.58,20.0]
[1721146216268,20.0,160.67,160.58,20.0]
[1721146216665,6.2236,160.68,160.58,20.0]
[1721146216666,6.40050443,160.71,160.58,20.0]
[1721146216900,6.40050443,160.71,160.59,0.34]
[1721146217387,16.399663,160.76,160.59,1.40553474]
[1721146217388,6.2223,160.72,160.59,1.40553474]
[1721146217701,6.40605245,160.74,160.6,15.4127]
[1721146218012,15.5468,160.81,160.61,58.51538088]
[1721146218013,6.2208,160.75,160.61,58.51538088]
[1721146218174,6.22,160.77,160.62,6.3874]
[1721146218381,6.41223201,160.77,160.63,20.17]
[1721146218581,6.41223201,160.77,160.64,0.17]
[1721146218806,12.63233201,160.77,160.64,0.17]
[1721146219011,12.63233201,160.77,160.63,20.17]
[1721146219012,15.5468,160.81,160.63,20.0]
[1721146219297,46.94,160.82,160.63,20.0]
[1721146219298,6.2196,160.78,160.64,1.5842542]
[1721146219508,12.63024451,160.8,160.65,1.24417364]
[1721146219675,6.2195,160.79,160.66,0.34]
[1721146219877,6.2195,160.79,160.68,16.3583]
[1721146220102,6.2197,160.78,160.69,1.24408408]
[1721146220296,6.41124451,160.8,160.69,1.24408408]
[1721146220496,6.2196,160.79,160.69,1.24408408]
[1721146220801,6.41124451,160.8,160.7,6.2972]
[1721146221007,6.2182,160.82,160.71,21.24388179]
[1721146221183,13.43317397,160.83,160.71,21.24388179]
[1721146221385,7.21507397,160.83,160.72,0.34]
[1721146221577,7.21507397,160.83,160.73,1.24377429]
[1721146221773,7.21507397,160.83,160.74,1.24377429]
[1721146221774,0.8220827,160.83,160.74,1.24377429]
[1721146222008,0.8220827,160.83,160.76,16.4012]
[1721146222412,0.8220827,160.83,160.77,1.24351912]
[1721146222586,0.8220827,160.83,160.76,16.4012]
[1721146223217,7.0401827,160.83,160.76,16.4012]
[1721146223387,20.0,160.82,160.76,16.4012]
[1721146223991,7.0398827,160.83,160.77,1.24378855]
[1721146224191,20.0,160.82,160.76,16.4012]
[1721146224404,0.8220827,160.83,160.77,1.24359751]
[1721146224785,6.2183,160.82,160.76,16.4012]
[1721146224988,7.0397827,160.83,160.76,16.4012]
[1721146225205,0.8220827,160.83,160.76,16.4012]
[1721146225615,6.3947955,160.89,160.78,6.0658]
[1721146225784,78.005,160.96,160.78,6.0658]
[1721146225785,10.0,160.94,160.78,6.0658]
[1721146225984,53.32854128,160.92,160.78,6.0658]
[1721146226287,10.0,160.9,160.78,6.0658]
[1721146226591,10.0,160.91,160.78,6.0658]
[1721146226910,6.2165,160.87,160.78,6.0658]
[1721146227116,20.0,160.86,160.78,6.0658]
[1721146227286,6.2169,160.85,160.78,6.0658]
[1721146227490,20.0,160.84,160.78,6.0658]
[1721146227793,26.2169,160.86,160.78,6.0658]
[1721146227997,20.0,160.86,160.78,6.0658]
[1721146228195,36.94,160.88,160.78,6.0658]
[1721146228513,36.94,160.88,160.76,16.4012]
[1721146228514,75.17,160.87,160.76,16.4012]
[1721146228714,46.94,160.85,160.72,6.6602]
[1721146229017,15.5464,160.81,160.72,6.6602]
[1721146229514,20.0,160.8,160.72,6.6602]
[1721146229806,20.0,160.81,160.72,6.6602]
[1721146230010,6.2206,160.76,160.72,6.6602]
[1721146230199,0.17,160.8,160.72,6.6602]
[1721146230394,6.2205,160.76,160.72,6.6602]
[1721146230607,6.2194,160.79,160.72,6.6602]
[1721146230809,20.0,160.78,160.72,6.6602]
[1721146231010,6.2201,160.77,160.72,6.6602]
[1721146231187,26.2204,160.76,160.72,6.6602]
[1721146231388,6.2201,160.77,160.72,6.6602]
[1721146231590,20.0,160.76,160.72,6.6602]
[1721146232399,20.0,160.77,160.72,7.90439289]
[1721146232595,26.2193,160.79,160.72,6.6602]
[1721146232809,20.0,160.79,160.73,1.24408424]
[1721146233120,6.218,160.83,160.74,1.24390832]
[1721146233321,6.2176,160.84,160.74,1.24390832]
[1721146233625,6.2181,160.82,160.73,0.34]
[1721146233824,18.56,160.85,160.72,6.6602]
[1721146233992,6.2193,160.79,160.72,6.6602]
[1721146234195,6.2182,160.82,160.72,6.6602]
[1721146234525,18.56,160.84,160.72,6.6602]
[1721146234687,36.94,160.86,160.72,6.6602]
[1721146234890,18.73,160.85,160.72,6.6602]
[1721146235089,6.2182,160.82,160.72,6.6602]
[1721146235291,20.0,160.81,160.72,6.6602]
[1721146235920,26.2181,160.82,160.73,0.34]
[1721146236122,15.5401,160.88,160.74,1.24377389]
[1721146236417,6.40218418,160.84,160.74,1.24377389]
[1721146236624,6.2159,160.88,160.75,0.34]
[1721146236917,6.2162,160.87,160.76,1.24332636]
[1721146237117,6.2158,160.88,160.77,0.34]
[1721146237287,6.2158,160.88,160.77,0.17]
[1721146237493,6.2155,160.89,160.77,0.17]
[1721146237693,6.2172,160.85,160.77,0.17]
[1721146238016,40.49697639,160.9,160.76,0.17]
[1721146238201,6.2177,160.84,160.76,0.17]
[1721146238824,6.2169,160.86,160.76,0.17]
[1721146238996,38.56,160.89,160.76,0.17]
[1721146239200,6.2162,160.87,160.76,0.17]
[1721146239508,20.0,160.86,160.76,0.17]
[1721146239691,20.0,160.86,160.76,1.41351247]
[1721146239895,6.39867639,160.9,160.77,0.17]
[1721146239896,20.0,160.89,160.77,0.17]
[1721146240119,26.2155,160.89,160.77,1.41345254]
[1721146240298,45.0,160.88,160.72,6.6602]
[1721146240503,6.2175,160.84,160.73,1.24369884]
[1721146240717,20.0,160.83,160.74,1.24354375]
[1721146241122,20.0,160.83,160.72,6.6602]
[1721146241705,20.0,160.83,160.73,1.58368294]
[1721146242029,20.0,160.88,160.74,38.18360843]
[1721146242200,20.0,160.88,160.75,0.34]
[1721146242400,26.2158,160.88,160.77,15.5134]
[1721146242705,6.2172,160.85,160.77,15.5134]
[1721146243027,6.2169,160.86,160.77,15.5134]
[1721146243317,20.0,160.85,160.77,15.5134]
[1721146243532,6.2181,160.82,160.77,15.5134]
[1721146243742,18.7,160.87,160.77,15.5134]
[1721146244025,20.0,160.81,160.77,15.5134]
[1721146244194,0.17,160.86,160.78,1.24370381]
[1721146244393,20.0,160.88,160.78,1.24370381]
[1721146244599,6.217,160.85,160.78,1.24370381]
[1721146244820,0.17,160.87,160.78,1.24370381]
[1721146244821,20.0,160.84,160.78,1.24370381]
[1721146245026,6.2175,160.84,160.77,15.5134]
[1721146245333,26.2178,160.83,160.77,15.5134]
[1721146245631,20.0,160.83,160.78,1.24357837]
[1721146245802,6.2177,160.84,160.77,15.5134]
[1721146245993,20.0,160.83,160.77,15.5134]
[1721146246198,35.7114,160.87,160.77,15.5134]
[1721146246429,6.2181,160.83,160.77,15.5134]
[1721146246733,20.0,160.82,160.73,1.2438929]
[1721146246901,0.17,160.81,160.74,1.24404353]
[1721146247108,6.2206,160.76,160.73,1.24398823]
[1721146247414,15.5482,160.79,160.72,6.6602]
[1721146247605,38.7,160.78,160.72,6.6602]
[1721146247800,6.2209,160.75,160.72,6.6602]
[1721146248030,20.0,160.74,160.72,6.6602]
[1721146248325,26.2212,160.74,160.71,15.8108]
[1721146249029,6.2192,160.79,160.72,1.24435023]
[1721146249330,20.0,160.78,160.72,1.24435023]
[1721146249625,20.0,160.81,160.71,15.8108]
[1721146250006,6.2205,160.76,160.71,15.8108]
[1721146250519,6.2199,160.78,160.71,15.8108]
[1721146250928,20.0,160.77,160.71,15.8108]
[1721146251138,20.0,160.77,160.72,1.24403501]
[1721146251601,26.2197,160.78,160.71,15.8108]
[1721146251924,20.0,160.78,160.71,15.8108]
[1721146252139,38.7,160.81,160.71,15.8108]
[1721146252309,6.2214,160.74,160.71,15.8108]
[1721146252934,6.222,160.72,160.67,6.5063]
[1721146253113,36.94,160.76,160.67,6.5063]
[1721146253319,26.2208,160.75,160.67,6.5063]
[1721146253526,20.0,160.75,160.67,6.5063]
[1721146253830,6.2215,160.74,160.67,6.5063]
[1721146254137,20.0,160.73,160.67,6.5063]
[1721146254936,6.2231,160.7,160.65,15.9035]
[1721146255129,20.0,160.69,160.65,15.9035]
[1721146255317,6.2227,160.7,160.65,15.9035]
[1721146255630,20.0,160.69,160.65,15.9035]
[1721146256704,26.2232,160.69,160.65,15.9035]
[1721146256920,6.2239,160.68,160.63,1.24473948]
[1721146257120,6.2243,160.66,160.62,6.1501]
[1721146257336,26.2249,160.65,160.6,15.2154]
[1721146257520,20.0,160.65,160.6,15.2154]
[1721146257836,20.0,160.65,160.57,6.4638]
[1721146258008,6.2259,160.62,160.57,6.4638]
[1721146258204,20.0,160.61,160.57,6.4638]
[1721146258406,20.0,160.61,160.49,102.71985069]
[1721146258709,6.41060204,160.67,160.49,121.41985069]
[1721146259018,6.2246,160.66,160.5,6.3768]
[1721146259217,6.41060204,160.67,160.5,43.3168]
[1721146259435,20.0,160.66,160.51,15.0673]
[1721146259644,20.0,160.66,160.52,21.24499027]
[1721146260012,20.0,160.66,160.53,0.34]
[1721146260547,6.41060204,160.67,160.57,55.64]
[1721146260709,6.2205,160.76,160.61,6.2723]
[1721146261036,6.41329566,160.76,160.62,1.58422802]
[1721146261239,6.41329566,160.76,160.62,40.28422802]
[1721146261407,6.254,160.84,160.63,77.1626]
[1721146261614,6.41866246,160.79,160.64,1.58402251]
[1721146261826,55.64,160.84,160.65,19.94392264]
[1721146262034,55.64,160.84,160.66,0.34]
[1721146262234,6.41173119,160.82,160.67,1.24386883]
[1721146262407,6.41173119,160.82,160.68,1.58379141]
[1721146262408,6.2186,160.81,160.68,1.58379141]
[1721146262617,6.41173119,160.82,160.7,16.1916]
[1721146262828,55.64,160.91,160.71,1.58355922]
[1721146263022,6.2166,160.86,160.71,7.80555922]
[1721146263222,6.42424632,160.86,160.75,6.2208]
[1721146263423,6.42424632,160.86,160.76,1.58337775]
[1721146263631,6.42424632,160.86,160.7,16.1916]
[1721146263827,6.42424632,160.86,160.71,0.34]
[1721146264143,6.2173,160.85,160.71,0.34]
[1721146264320,6.42424632,160.86,160.71,0.34]
[1721146264511,6.2174,160.84,160.71,0.34]
[1721146264713,26.2177,160.83,160.71,0.34]
[1721146265152,20.0,160.83,160.72,1.24364718]
[1721146265323,6.42424632,160.86,160.73,0.34]
[1721146265521,6.42424632,160.86,160.74,1.24350341]
[1721146265729,6.42424632,160.86,160.76,6.078]
[1721146265933,6.2154,160.89,160.77,1.58327136]
[1721146266141,6.42906574,160.9,160.77,0.34]
[1721146266344,25.12906574,160.9,160.76,6.078]
[1721146266649,6.42906574,160.9,160.77,15.7858]
[1721146266828,58.90756574,160.9,160.77,15.6158]
[1721146267034,6.2162,160.87,160.77,15.6158]
[1721146267252,6.2158,160.88,160.77,15.6158]
[1721146267419,62.06906574,160.9,160.77,15.6158]
[1721146267619,43.36906574,160.9,160.77,15.6158]
[1721146267816,6.42906574,160.9,160.78,0.17]
[1721146268022,6.42906574,160.9,160.77,15.6158]
[1721146268023,43.36906574,160.9,160.77,15.6158]
[1721146268426,20.0,160.89,160.78,0.62667069]
[1721146268752,20.0,160.89,160.77,15.6158]
[1721146269451,6.2185,160.81,160.77,15.6158]
[1721146269641,26.2189,160.8,160.76,6.078]
[1721146270236,18.7,160.84,160.76,6.078]
[1721146270438,6.2198,160.78,160.76,6.078]
[1721146270651,6.2198,160.78,160.71,22.2541]
[1721146270834,20.0,160.77,160.71,22.2541]
[1721146271559,6.2202,160.77,160.71,22.2541]
[1721146271759,20.0,160.76,160.71,22.2541]
[1721146272252,36.94,160.83,160.71,22.2541]
[1721146272470,6.2167,160.86,160.71,28.4762]
[1721146272671,6.2171,160.85,160.71,22.2541]
[1721146272835,36.94,160.87,160.71,22.2541]
[1721146273034,6.2168,160.86,160.71,28.4763]
[1721146273329,55.64,160.87,160.72,0.34]
[1721146273530,6.2157,160.89,160.74,6.2208]
[1721146273848,6.2157,160.89,160.73,15.5532]
[1721146273849,43.36906574,160.9,160.75,0.17]
[1721146274162,6.2174,160.84,160.72,0.17]
[1721146274358,18.7,160.83,160.71,22.2541]
[1721146274671,36.94,160.87,160.71,22.2541]
[1721146274834,6.2174,160.84,160.71,22.2541]
[1721146275034,6.2177,160.83,160.71,22.2541]
[1721146275241,18.7,160.85,160.71,22.2541]
[1721146275467,36.94,160.87,160.71,22.2541]
[1721146275665,65.17,160.86,160.71,22.2541]
[1721146275847,25.5434,160.84,160.71,22.2541]
[1721146276045,36.94,160.77,160.66,22.1272]
[1721146276362,38.7,160.76,160.66,22.1272]